Cogmind - Beta 13 @@@ ROGUE MODE // 2024.04.09 @ 06:37:42 Player: scumgirle Result: Destroyed by L-31 Rogue with Katana Performance ------------- Evolutions (2) 1000 Regions Visited (6) 1200 Robots Destroyed (16) 80 Value Destroyed (659) 659 Prototype IDs (2) 40 Alien Tech Used (0) 0 Bonus (300) 300 TOTAL SCORE: 3279 Bonus ------- Aligned with FarCom 300 Cogmind --------- Core Integrity 0/550 Matter 141/300 Energy 40/100 System Corruption 9% Temperature Critical (506) Movement Core (100) Ox1 Location -8/Storage Parts ------- > --- POWER (2) -------- (None) > --- PROPULSION (3) --- (None) > --- UTILITY (3) ------ Small Storage Unit Signal Interpreter > --- WEAPON (3) ------- (None) > --- INVENTORY (8) ---- Carbon-fiber Leg Carbon-fiber Leg Improved Heat Sink Medium Matter Pod (0) Machine Analyzer Recoil Stabilizer Recoil Stabilizer Peak State ------------ > --- POWER ------------ Light Nuclear Core Light Nuclear Core > --- PROPULSION ------- Carbon-fiber Leg Carbon-fiber Leg Titanium Leg > --- UTILITY ---------- Small Storage Unit Sensor Array Signal Interpreter > --- WEAPON ----------- Heavy Assault Rifle Assault Cannon Assault Cannon > --- INVENTORY -------- Carbon-fiber Leg Carbon-fiber Leg Carbon-fiber Leg Machine Analyzer Heavy Assault Rifle Minigun Assault Cannon Mining Laser [Rating: 28] Favorites ----------- Power Light Nuclear Core Engine Ion Engine Power Core Light Nuclear Core Propulsion Aluminum Leg Leg Aluminum Leg Utility Small Storage Unit Device Sensor Array Storage Small Storage Unit Processor Signal Interpreter Weapon EM Pulse Gun Energy Gun EM Pulse Gun Energy Cannon Particle Cannon Ballistic Gun Assault Rifle Ballistic Cannon Assault Cannon Special Weapon Mining Laser Build | -11 -10 -10 -10 -9 -8 -8 ------- Run | Yrd Mat Min Exi Min Mat Sto Slots Evolved 4 | . . . . . 4 . Power 1 | . . . . . 1 . Propulsion 1 | . . . . . 1 . Utility 1 | . . . . . 1 . Weapon 1 | . . . . . 1 . Parts Attached 39 | 5 1 . 4 . 22 7 Power 4 | . . . 1 . 3 . Engine 2 | . . . 1 . 1 . Core 2 | . . . . . 2 . Reactor . | . . . . . . . Propulsion 11 | 2 . . . . 8 1 Treads . | . . . . . . . Leg 11 | 2 . . . . 8 1 Wheel . | . . . . . . . Hover . | . . . . . . . Flight . | . . . . . . . Utility 10 | 1 1 . 3 . 5 . Device 5 | . . . 1 . 4 . Storage 3 | 1 . . 2 . . . Processor 2 | . 1 . . . 1 . Hackware . | . . . . . . . Protection . | . . . . . . . Artifact . | . . . . . . . Weapon 14 | 2 . . . . 6 6 Energy Gun 1 | 1 . . . . . . Energy Cannon 2 | . . . . . 2 . Ballistic Gun 4 | 1 . . . . 1 2 Ballistic Cannon 6 | . . . . . 3 3 Launcher . | . . . . . . . Special Weapon 1 | . . . . . . 1 Impact Weapon . | . . . . . . . Slashing Weapon . | . . . . . . . Piercing Weapon . | . . . . . . . Special Melee Weapon . | . . . . . . . Unidentified Prototypes 2 | . . . 2 . . . Parts Lost 9 | . . . . . 1 8 Power 2 | . . . . . . 2 Propulsion 2 | . . . . . . 2 Utility 2 | . . . . . 1 1 Weapon 3 | . . . . . . 3 Highest Loss Streak 8 | . . . . . 1 8 To Critical Strikes . | . . . . . . . Average Slot Usage (%) 90 | . 75 85 89 100 88 96 Engine 7 | . . . 6 14 11 . Core 3 | . . . . . 1 16 Leg 25 | . 28 28 28 28 23 26 Device 4 | . . . . . 6 8 Storage 10 | . 14 14 11 14 9 9 Processor 10 | . 4 14 14 14 11 9 Energy Gun 7 | . 14 14 14 14 5 . Energy Cannon 3 | . . . . . 7 . Ballistic Gun 9 | . 14 14 14 14 5 10 Ballistic Cannon 5 | . . . . . 6 15 Naked Turns . | . . . . . . . Heaviest Build 33 | 9 9 9 14 14 33 29 Greatest Support 47 | 20 20 20 20 20 47 47 Greatest Overweight (x) 9 | 1 . . . . 9 . Average Overweight (x) . | . . . . . . . Largest Inventory Capacity 8 | 8 8 8 8 8 8 8 Average Capacity 7 | 7 8 8 7 8 8 8 Most Carried 8 | 5 4 4 5 5 8 8 Average Carried 5 | 2 2 3 3 4 6 7 Final Capacity 8 | 8 8 8 8 8 8 8 Final Carried 8 | 2 3 4 3 5 8 7 Class Distribution -------------------- 58% | Skirmisher 41% | Mutant Dominant Class ---------------- Mutant | -10/Materials Mutant | -10/Mines Mutant | -10/Exiles Mutant | -9/Mines Skirmisher | -8/Materials Skirmisher | -8/Storage Resources | -11 -10 -10 -10 -9 -8 -8 ----------- Run | Yrd Mat Min Exi Min Mat Sto Matter Collected 803 | 225 50 . . 40 267 221 Remotely . | . . . . . . . Salvage Created 628 | . 112 . . . 320 196 Parts 35 | . 7 . . . 12 16 Haulers Intercepted . | . . . . . . . Recyclers Shooed . | . . . . . . . Parts Field Recycled . | . . . . . . . Retrieved Matter . | . . . . . . . Parts Self-Destructed . | . . . . . . . Prevented . | . . . . . . . Kills | -11 -10 -10 -10 -9 -8 -8 ------- Run | Yrd Mat Min Exi Min Mat Sto Combat Hostiles Destroyed 13 | . 2 . . . 6 5 Guns 1 | . . . . . . 1 Cannons 10 | . . . . . 6 4 AOE 2 | . 2 . . . . . Classes Destroyed 4 | . 2 . . . 1 1 Builder 1 | . . . . . . 1 Watcher 2 | . 1 . . . . 1 Grunt 9 | . 2 . . . 3 4 Sentry 4 | . . . . . 3 1 Best Kill Streak 4 | . 2 . . . 4 4 Combat Bots Only 4 | . 2 . . . 4 3 Max Kills in Single Turn 1 | . 1 . . . 1 1 Gunslinging . | . . . . . . . Exploded 1 | . 1 . . . . . Melee . | . . . . . . . Uniques/NPCs Destroyed . | . . . . . . . Combat | -11 -10 -10 -10 -9 -8 -8 -------- Run | Yrd Mat Min Exi Min Mat Sto Hostile Shots Fired 130 | . 3 . . . 30 97 Missed 26 | . 1 . . . 5 20 Damage Taken 1959 | . 33 . . . 405 1521 Core 565 | . . . . . 65 500 Absorbed by Shields 12 | . . . . . 12 . Core Remaining (%) 100 | 100 . . . 100 . . Volleys Fired 57 | . 5 . . . 23 29 Largest 3 | . 2 . . . 3 3 Hottest 176 | . 60 . . . 176 111 Shots Fired 140 | . 10 . . . 55 75 Gun 64 | . 10 . . . 23 31 Cannon 74 | . . . . . 32 42 Launcher . | . . . . . . . Special 2 | . . . . . . 2 Kinetic 91 | . 5 . . . 13 73 Thermal 32 | . . . . . 30 2 Explosive . | . . . . . . . Electromagnetic 17 | . 5 . . . 12 . Robot Hit Streak 18 | . 2 . . . 18 6 Robot Miss Streak 4 | . 1 . . . 4 4 Penetration Max . | . . . . . . . Secondary Targets . | . . . . . . . Shots Hit Robots 85 | . 6 . . . 34 45 Core Hits 29 | . 5 . . . 12 12 Critical Kills . | . . . . . . . Critical Parts Destroyed . | . . . . . . . Critical Strikes 3 | . . . . . . 3 Blast 3 | . . . . . . 3 Melee Attacks . | . . . . . . . Impact . | . . . . . . . Slashing . | . . . . . . . Piercing . | . . . . . . . Sneak Attacks . | . . . . . . . Combat Hostiles . | . . . . . . . Follow-up Attacks . | . . . . . . . Damage Inflicted 1870 | . 159 . . . 669 1042 Guns 475 | . 66 . . . 110 299 Cannons 1278 | . . . . . 559 719 Explosions 93 | . 93 . . . . . Melee . | . . . . . . . Ramming . | . . . . . . . Kinetic 1163 | . 38 . . . 107 1018 Thermal 627 | . 93 . . . 510 24 Explosive . | . . . . . . . Electromagnetic 80 | . 28 . . . 52 . Impact . | . . . . . . . Slashing . | . . . . . . . Piercing . | . . . . . . . Highest Corruption 9 | . . . . . . 9 Average Corruption 8 | . . . . . . 8 Corruption Purged . | . . . . . . . Corruption Blocked . | . . . . . . . Effects 2 | . . . . . . 2 Matter Fused 1 | . . . . . . 1 Heat Flow Errors 1 | . . . . . . 1 Overload Shots . | . . . . . . . Overflow Damage 13 | . . . . . 4 9 Projectiles 13 | . . . . . 4 9 Explosions . | . . . . . . . Melee . | . . . . . . . Knockbacks 13 | . . . . . . 13 Impact . | . . . . . . . Kinetic 9 | . . . . . . 9 Secondary 4 | . . . . . . 4 Self-Inflicted Damage . | . . . . . . . Shots . | . . . . . . . Rammed . | . . . . . . . Targets Rammed . | . . . . . . . Kicked . | . . . . . . . Crushed . | . . . . . . . Highest Temperature 892 | . 4 . . . 892 506 Average Temperature 235 | . 4 . . . 320 173 Received Heat Transfer 768 | . 18 . . . 192 558 Effects 38 | . . . . . 30 8 Shutdowns 10 | . . . . . 6 4 Energy Bleed 4 | . . . . . 3 1 Interference 6 | . . . . . 6 . Matter Decay 1 | . . . . . 1 . Short Circuit 4 | . . . . . 3 1 Damage (minor) 3 | . . . . . 3 . Damage (major) 10 | . . . . . 8 2 Siege Activations . | . . . . . . . Robots Corrupted . | . . . . . . . Combat Hostiles . | . . . . . . . Parts Fried . | . . . . . . . Impact Corruptions . | . . . . . . . Robots Melted . | . . . . . . . Combat Hostiles . | . . . . . . . Parts Melted 3 | . . . . . 3 . Heat Transferred 1112 | . 150 . . . 925 37 Parts Sabotaged . | . . . . . . . Parts Stolen . | . . . . . . . Parts Stripped . | . . . . . . . Power Chain Reactions 2 | . 2 . . . . . Alert | -11 -10 -10 -10 -9 -8 -8 ------- Run | Yrd Mat Min Exi Min Mat Sto Peak Influence 188 | . 113 43 . . 136 188 Initial 43 | . . 43 . . . 18 Average 72 | . 80 43 . . 72 112 Maximum Alert Level . | . . . . . . . Low Security (%) 100 | 100 100 100 . 100 100 100 Level 1 . | . . . . . . . Level 2 . | . . . . . . . Level 3 . | . . . . . . . Level 4 . | . . . . . . . Level 5 . | . . . . . . . High Security . | . . . . . . . Max Security . | . . . . . . . Squads Dispatched 2 | . . . . . . 2 Investigation . | . . . . . . . Extermination . | . . . . . . . Reinforcement . | . . . . . . . Assault 2 | . . . . . . 2 Garrison . | . . . . . . . Intercept . | . . . . . . . Searches Triggered . | . . . . . . . Construction Impeded . | . . . . . . . Haulers Reinforced . | . . . . . . . Active Scanning Responses . | . . . . . . . Cargo Convoy Interrupts . | . . . . . . . Stealth | -11 -10 -10 -10 -9 -8 -8 --------- Run | Yrd Mat Min Exi Min Mat Sto Distress Signals 2 | . . . . . 1 1 Communications Jammed . | . . . . . . . Distress Signals . | . . . . . . . Times Spotted 35 | . 3 . . . 14 18 Peak Tracking Total 8 | . 2 . . . 5 8 Tactical Retreats 2 | . . . . . 2 . Traps | -11 -10 -10 -10 -9 -8 -8 ------- Run | Yrd Mat Min Exi Min Mat Sto Traps Triggered . | . . . . . . . Indirectly . | . . . . . . . Trap Hack Attempts . | . . . . . . . Triggered . | . . . . . . . Disarmed . | . . . . . . . Reprogrammed . | . . . . . . . Reused . | . . . . . . . Traps Extracted . | . . . . . . . Installed . | . . . . . . . Triggered . | . . . . . . . Machines | -11 -10 -10 -10 -9 -8 -8 ---------- Run | Yrd Mat Min Exi Min Mat Sto Machines Disabled 2 | . . . . . 1 1 Max in Single Turn 1 | . . . . . 1 1 Machines Repaired . | . . . . . . . Machines Dismantled . | . . . . . . . Machines Sabotaged . | . . . . . . . Overloaded Fab Kills . | . . . . . . . Hacking | -11 -10 -10 -10 -9 -8 -8 --------- Run | Yrd Mat Min Exi Min Mat Sto Machines Accessed 5 | . 2 . . . 2 1 Terminals 5 | . 2 . . . 2 1 Fabricators . | . . . . . . . Repair Stations . | . . . . . . . Recycling Units . | . . . . . . . Scanalyzers . | . . . . . . . Garrison Access . | . . . . . . . Total Hacks 11 | . 4 . . . 6 1 Successful 7 | . . . . . 6 1 Failed 4 | . 4 . . . . . Catastrophic . | . . . . . . . Database Lockouts . | . . . . . . . Manual 3 | . . . 1 . . 2 Terminals 11 | . 4 . . . 6 1 Fabricators . | . . . . . . . Repair Stations . | . . . . . . . Recycling Units . | . . . . . . . Scanalyzers . | . . . . . . . Garrison Access . | . . . . . . . Terminal Hacks 7 | . . . . . 6 1 Record 2 | . . . . . 2 . Open Door 1 | . . . . . . 1 Alert Level 1 | . . . . . 1 . Locate Traps 1 | . . . . . 1 . Dispatch Records 1 | . . . . . 1 . Reinforcement Status 1 | . . . . . 1 . Fabricator Hacks . | . . . . . . . Repair Station Hacks . | . . . . . . . Recycling Unit Hacks . | . . . . . . . Scanalyzer . | . . . . . . . Garrison Access Hacks . | . . . . . . . Unauthorized Hacks . | . . . . . . . Terminals . | . . . . . . . Fabricators . | . . . . . . . Repair Stations . | . . . . . . . Recycling Units . | . . . . . . . Scanalyzers . | . . . . . . . Garrison Access . | . . . . . . . Data Cores Recovered . | . . . . . . . Used . | . . . . . . . Hacking Detections 2 | . 1 . . . . 1 Full Trace Events . | . . . . . . . Feedback Events . | . . . . . . . Feedback Blocked . | . . . . . . . Robot Schematics Acquired . | . . . . . . . Robots Built . | . . . . . . . Authchips . | . . . . . . . Time . | . . . . . . . Total Robot Build Rating . | . . . . . . . Part Schematics Acquired . | . . . . . . . Parts Built . | . . . . . . . Authchips . | . . . . . . . Time . | . . . . . . . Total Part Build Rating . | . . . . . . . Parts Repaired . | . . . . . . . Time . | . . . . . . . Parts Recycled . | . . . . . . . Recycled Matter . | . . . . . . . Retrieved Matter . | . . . . . . . Retrieved Components . | . . . . . . . Parts Scanalyzed . | . . . . . . . Part Schematics Acquired . | . . . . . . . Parts Damaged . | . . . . . . . Bothacking | -11 -10 -10 -10 -9 -8 -8 ------------ Run | Yrd Mat Min Exi Min Mat Sto Used RIF Installer . | . . . . . . . Robots Hacked . | . . . . . . . Non-combat . | . . . . . . . Combat . | . . . . . . . Robot Hacks Applied . | . . . . . . . Relay Couplers Released . | . . . . . . . Fabnet Peak Effective % . | . . . . . . . Robots Rewired . | . . . . . . . Allies Hacked . | . . . . . . . Hacks Repelled . | . . . . . . . Allies | -11 -10 -10 -10 -9 -8 -8 -------- Run | Yrd Mat Min Exi Min Mat Sto Total Allies 3 | . . 1 . . . 2 Largest Group 2 | . . 1 1 . . 2 Highest-Rated Group 62 | . . 31 31 . . 62 Highest-Rated Ally 31 | . . 31 31 . . 31 Total Orders . | . . . . . . . Ally Attacks 11 | . . . . . . 11 Total Damage 231 | . . . . . . 231 Kills . | . . . . . . . Allies Corrupted . | . . . . . . . Allies Melted . | . . . . . . . Intel | -11 -10 -10 -10 -9 -8 -8 ------- Run | Yrd Mat Min Exi Min Mat Sto Robot Analysis Total . | . . . . . . . Derelict Logs Recovered . | . . . . . . . Drone Launches . | . . . . . . . Drone Recoveries . | . . . . . . . Exploration | -11 -10 -10 -10 -9 -8 -8 ------------- Run | Yrd Mat Min Exi Min Mat Sto Turns Passed 2107 | 62 172 84 320 160 884 425 Spaces Moved 1318 | 45 126 66 257 132 474 218 Core 21 | 17 . . . . 4 . Treads . | . . . . . . . Legs 1297 | 28 126 66 257 132 470 218 Wheels . | . . . . . . . Hover . | . . . . . . . Flight . | . . . . . . . Fastest Speed 50 | 50 120 120 120 120 110 120 Average Speed 122 | 99 120 120 120 120 127 122 Slowest Speed 500 | 120 120 120 120 120 500 123 Overloaded Moves . | . . . . . . . Propulsion Burnouts . | . . . . . . . Robots Hopped . | . . . . . . . Cave-ins Triggered . | . . . . . . . Exploration Rate (%) 23 | 3 30 8 42 35 30 19 Regions Visited 6 Branch Regions 4 Pre-discovered Areas . | . . . . . . . Known Exits Taken 5 | . 1 1 1 1 1 . Unknown Exits Taken 1 | 1 . . . . . . Scrap Searched 2 | . . . . 2 . . Spaces Dug . | . . . . . . . Terrain Destroyed 17 | . 12 . . . . 5 Melee . | . . . . . . . Projectile 5 | . . . . . . 5 AOE 12 | . 12 . . . . . Terrain Rammed . | . . . . . . . Walls Destroyed . | . . . . . . . Machines Disabled . | . . . . . . . Actions | -11 -10 -10 -10 -9 -8 -8 --------- Run | Yrd Mat Min Exi Min Mat Sto Total 1714 | 62 137 71 271 133 720 320 Wait 206 | 6 4 5 . . 144 47 Move 1312 | 44 125 65 256 131 473 218 Hop . | . . . . . . . Pick Up 53 | 7 2 1 5 2 27 9 Fast Attach . | . . . . . . . Attach 39 | 5 1 . 4 . 22 7 Detach 16 | . . . 2 . 13 1 Swap . | . . . . . . . Drop 31 | . . . 4 . 18 9 Fire 57 | . 5 . . . 23 29 Melee . | . . . . . . . Ram . | . . . . . . . Kick . | . . . . . . . Crush . | . . . . . . . Escape Stasis . | . . . . . . . Rewire . | . . . . . . . Trap . | . . . . . . . Miscellaneous . | . . . . . . . Route ------- -11/Scrapyard -10/Materials -10/Mines -10/Exiles -9/Mines -8/Materials -8/Storage History --------- Turn | Location | Event 2 | -11/Scrapyard | Met Revision 17 30 | -11/Scrapyard | Discovered new exit (range 13) 63 | -11/Scrapyard | Entered Materials 164 | -10/Materials | Discovered new exit (range 16) 232 | -10/Materials | Identified exit to Mines 235 | -10/Materials | Entered Mines 241 | -10/Mines | Received a Mining Laser from a helpful Derelict 262 | -10/Mines | Deemed a non-threat by the Exiles lab entrance 263 | -10/Mines | Discovered new exit (range 5) 309 | -10/Mines | Build established: Mutant 318 | -10/Mines | Identified exit to Exiles 319 | -10/Mines | Entered Exiles 319 | -10/Exiles | Accompanied by 1 ally 335 | -10/Exiles | Discovered new exit (range 15) 349 | -10/Exiles | Met 8R-AWN 370 | -10/Exiles | Met EX-HEX 405 | -10/Exiles | Met EX-BIN 421 | -10/Exiles | Aligned with FarCom system 423 | -10/Exiles | Given EX-Vault access code 450 | -10/Exiles | Opened EX-Vault 465 | -10/Exiles | Found Prototype Storage 466 | -10/Exiles | Identified Superbattery 491 | -10/Exiles | Found Prototype Storage 499 | -10/Exiles | Found Prototype Device 500 | -10/Exiles | Identified Chronowheel 500 | -10/Exiles | Activated Chronowheel 539 | -10/Exiles | Warned to stay clear of 0b10 Research branches 637 | -10/Exiles | Identified exit to Mines 639 | -10/Exiles | Entered Mines 754 | -9/Mines | Discovered new exit (range 6) 797 | -9/Mines | Identified exit to Materials 799 | -9/Mines | Entered Materials 799 | -8/Materials | Evolved 4 slots: Power x1, Propulsion x1, Utility x1, Weapon x1 1186 | -8/Materials | Build established: Skirmisher 1645 | -8/Materials | Discovered new exit (range 11) 1666 | -8/Materials | Identified exit to Storage 1683 | -8/Materials | Entered Storage 1973 | -8/Storage | Met a pair of Derelict thieves 2098 | -8/Storage | Core integrity fell below 50% 2104 | -8/Storage | Core integrity fell below 20% 2108 | -8/Storage | Destroyed by L-31 Rogue with Katana Last Messages --------------- 02096_ R-06 Scavenger collects Prototype Energy Gun. 02097_ K-01 Serf collects debris. 02098_ Destroyed Imp. Aluminum Leg. 02098_ Carbon-fiber Leg destroyed. 02099_ R-06 Scavenger collects Carbon-fiber Leg. 02099_ Assault Cannon destroyed. 02100_ Carbon-fiber Leg destroyed. 02101_ Knocked back. 02102_ K-01 Serf collects debris. 02102_ R-06 Scavenger collects Imp. Heat Sink. 02102_ Critical hit (Burn: +37). 02103_ U-05 Engineer builds a Wall. 02104_ System corrupted: Heat flow error (+290). 02105_ K-01 Serf collects debris. 02107_ Mining Laser destroyed. 02108_ Overheating: Signal Interpreter damaged (-5). 02108_ Overheating: Sml. Storage Unit damaged (-15). Map ----- +----------------------------------------------------+ | | | | | | | | | | | | | | | | | | | | | | | | | ?????????????????????????????????????????????????? | | ?????????????????????????????????????????????????? | | ?????????????????????????????????????????????????? | | ?????????????????????????????????????????????????? | | ?????????????????????????????????????????????????? | | ?????????????????????????????????????????????????? | | ?????????????????????????????????????????????????? | | ?????????????????????????#####???????????????????? | | ?????????????????????????#! !#????????????#####??? | | ?????????????????????????#! !#????????????# #??? | | ?????????????????????????#!] #????????????# #??? | | ?????????????????????????#i% #????????????# #??? | | ????????????????????????##mg #????????????# #??? | | ????????????????????????#@lgk##???????????# #??? | | ????????????????????????##ggu##???????????# #??? | | ????????????????#+#########b############### #??? | | ????????????? klm #??? | | ????????????? #??? | | ????????????? #??? | | ??????????????+###########+##########/##### #??? | | ????????????????????????? ??????# # #??? | | ????????????????????????? ??????# # #??? | | ????????????????????????# ??????# g # #??? | | ????????????????????????##???????# !w! # #??? | | ?????????????????????????????????# !!! # #??? | | ?????????????????????????????????# !!! # #??? | | ?????????????????????????????????# # %#??? | | ?????????????????????????????????# / #??? | | ?????????????????????????????????# # #??? | | ??????????????????Y??????????????########## #??? | | ????????????????????????????????########### #??? | | ????????????????????????????????# # #??? | | ????????????????????????????????# # #??? | | ????????????????????????????????# """""" # #??? | | ????????????????????????????????# "!!!!" [+ #??? | | ????????????????????????????????# "!!/= # #??? | | ????????????????????????????????# " " # #??? | | ????????????????????????????????#] # #??? | +----------------------------------------------------+ Best States ------------- Heat Dissipation 31 Energy Generation 23 Energy Capacity 425 Matter Stores 300 Matter Capacity 300 Sight Range 16 Robot Scan Range 14 Terrain Scan Density 110 ECM Strength 1 Evasion (%) 55 Item Schematics ----------------- None Robot Schematics ------------------ None Fabricated ------------ Nothing Alien Tech Used ----------------- None Achievements -------------- None Challenges ------------ None Game ------ Seed GreatRelayBay Manual? 0 Play Time 00:32:46 Cumulative 2.9 hours Start 2024.04.09 @ 06:03:49 End 2024.04.09 @ 06:37:42 Sessions 1 Manual Loads 0 Difficulty Rogue Special Mode None Game No. 10 Rogue 10 Adventurer 0 Explorer 0 Win Type - Total 0 Types 0/0/0/0/0/0/0/0/0 Lore% 6 Gallery% 7 Achievement% 6 Wizard Run 0 Options --------- Layout 1 ASCII 0 Keyboard 1 Movement Numpad Keybinds 0 Fullscreen 1 Font 18/SmallcapsGlow Map View 50x40 Zoom Use 0% Tactical HUD 1 Map Filters NONE Filters NONE Steam 0 RUN: c1499f91-bfe6-4a08-a7fb-28c699a9ce78